Cogmind - Beta 15 @@@ ROGUE MODE // 2025.10.18 @ 05:42:08 Player: souux Result: Self-destructed Performance ------------- Evolutions (2) 1000 Regions Visited (7) 1400 Robots Destroyed (62) 310 Value Destroyed (1213) 1213 Prototype IDs (29) 580 Alien Tech Used (0) 0 Bonus (301) 301 TOTAL SCORE: 4804 Bonus ------- Follower Combat Kills 7 Aligned with FarCom 300 Friendly Fire -6 Cogmind --------- Core Integrity 499/550 Matter 300/300 Energy 213/250 System Corruption 7% Temperature Cool (0) Movement Rolling (105) Ox1 Location -8/Materials Parts ------- > --- POWER (1) -------- Ion Engine > --- PROPULSION (3) --- Armored Wheel Armored Wheel > --- UTILITY (5) ------ Improved Heat Sink Large Storage Unit Medium Armor Plating Medium Armor Plating > --- WEAPON (2) ------- (None) > --- INVENTORY (15) --- Improved Ion Engine Light Deuterium Engine Light Nuclear Core Light Treads Improved Flight Unit Huge Storage Unit High-capacity Matter Pod (200) Light Armor Plating Medium Armor Plating Medium Armor Plating Hacking Suite Hacking Suite Light Assault Rifle Mini Grenade Launcher Katana Peak State ------------ > --- POWER ------------ Ion Engine > --- PROPULSION ------- Light Treads Armored Wheel Armored Wheel > --- UTILITY ---------- Improved Heat Sink Large Storage Unit Light Armor Plating Medium Armor Plating Medium Armor Plating > --- WEAPON ----------- Guided Plasma Cannon Heavy Assault Rifle > --- INVENTORY -------- Improved Ion Engine Light Deuterium Engine Light Nuclear Core Light Treads Improved Flight Unit Huge Storage Unit High-capacity Matter Pod Structural Scanner Medium Armor Plating Medium Armor Plating Hacking Suite Hacking Suite Light Assault Rifle Mini Grenade Launcher Katana [Rating: 28] Favorites ----------- Power Ion Engine Engine Ion Engine Propulsion Armored Wheel Treads Light Treads Wheel Armored Wheel Flight Unit Improved Flight Unit Utility Large Storage Unit Device Seismic Detector Storage Large Storage Unit Protection Medium Armor Plating Weapon Heavy Assault Rifle Energy Cannon Guided Plasma Cannon Ballistic Gun Heavy Assault Rifle Launcher Mini Grenade Launcher Build | -11 -10 -10 -9 -9 -9 -8 -8 ------- Run | Yrd Mat Min Mat Min Exi Min Mat Slots Evolved 4 | . . . 2 . . . 2 Power . | . . . . . . . . Propulsion 1 | . . . 1 . . . . Utility 3 | . . . 1 . . . 2 Weapon . | . . . . . . . . Parts Attached 31 | 7 8 2 5 . . 2 7 Power 3 | 1 1 . . . . . 1 Engine 3 | 1 1 . . . . . 1 Core . | . . . . . . . . Reactor . | . . . . . . . . Propulsion 9 | 2 3 . 2 . . 2 . Treads 1 | . . . . . . 1 . Leg . | . . . . . . . . Wheel 7 | 2 3 . 1 . . 1 . Hover . | . . . . . . . . Flight 1 | . . . 1 . . . . Utility 11 | 2 2 1 1 . . . 5 Device 3 | 1 . . . . . . 2 Storage 3 | 1 2 . . . . . . Processor . | . . . . . . . . Hackware . | . . . . . . . . Protection 5 | . . 1 1 . . . 3 Artifact . | . . . . . . . . Weapon 8 | 2 2 1 2 . . . 1 Energy Gun . | . . . . . . . . Energy Cannon 1 | . . . . . . . 1 Ballistic Gun 6 | 2 2 . 2 . . . . Ballistic Cannon . | . . . . . . . . Launcher 1 | . . 1 . . . . . Special Weapon . | . . . . . . . . Impact Weapon . | . . . . . . . . Slashing Weapon . | . . . . . . . . Piercing Weapon . | . . . . . . . . Special Melee Weapon . | . . . . . . . . Unidentified Prototypes 1 | . . . 1 . . . . Parts Lost 11 | . . . 1 . . 2 8 Power 1 | . . . . . . . 1 Propulsion 3 | . . . . . . 2 1 Utility 3 | . . . . . . . 3 Weapon 4 | . . . 1 . . . 3 Highest Loss Streak 3 | . . . 1 . . 2 3 To Critical Strikes . | . . . . . . . . Average Backups 12 | 5 10 13 13 14 14 13 13 Power 1 | . . 1 1 2 2 2 2 Propulsion 3 | 4 4 4 3 4 4 2 2 Utility 4 | . 3 4 4 4 4 4 5 Weapon 3 | . 3 4 4 4 4 5 3 Tool/Special . | . . . . . . . . Unused Backups 21 | 2 6 . 1 . . . 12 Power 4 | . 1 . . . . . 3 Propulsion 6 | 2 3 . . . . . 1 Utility 6 | . . . . . . . 6 Weapon 5 | . 2 . 1 . . . 2 Tool/Special . | . . . . . . . . Average Slot Usage (%) 92 | . 100 100 85 100 100 98 84 Engine 11 | . 14 14 11 11 11 11 8 Treads 4 | . . . . . . 10 8 Wheel 24 | . 28 28 29 33 33 22 18 Device 9 | . 14 . . 11 11 11 10 Storage 11 | . 14 14 11 11 11 11 9 Protection 8 | . . 14 11 11 11 11 11 Energy Cannon 1 | . . . . . . . 4 Ballistic Gun 17 | . 28 24 21 13 11 11 12 Launcher 2 | . . 3 . 8 11 11 . Peak Build Rating 28 | 7 12 12 18 17 18 18 28 Average Rating 16 | 5 11 12 14 17 17 15 21 On Entrance 12 | . 7 12 12 17 17 18 16 Naked Turns . | . . . . . . . . Heaviest Build 90 | 13 90 34 39 39 37 37 56 Greatest Support 36 | 26 26 24 36 36 36 24 24 Greatest Overweight (x) 3 | 3 3 1 1 1 1 1 2 Average Overweight (x) . | . . 1 . 1 1 1 1 Largest Inventory Capacity 25 | 8 25 15 15 15 15 15 15 Average Capacity 14 | 7 14 15 15 15 15 15 15 Most Carried 15 | 8 13 13 15 14 15 15 15 Average Carried 12 | 6 10 13 13 14 14 13 13 Final Capacity 15 | 8 15 15 15 15 15 15 15 Final Carried 15 | 8 13 13 14 14 15 13 15 Class Distribution -------------------- 100% | Mutant Dominant Class ---------------- Mutant | -10/Materials Mutant | -10/Mines Mutant | -9/Materials Mutant | -9/Mines Mutant | -9/Exiles Mutant | -8/Mines Mutant | -8/Materials Resources | -11 -10 -10 -9 -9 -9 -8 -8 ----------- Run | Yrd Mat Min Mat Min Exi Min Mat Matter Collected 1369 | 312 249 7 419 13 57 . 312 Remotely . | . . . . . . . . Salvage Created 1411 | 98 249 25 472 13 . 7 547 Parts 119 | 9 21 5 33 5 . 3 43 Haulers Intercepted 1 | . . . . . . . 1 Recyclers Shooed . | . . . . . . . . Parts Field Recycled . | . . . . . . . . Retrieved Matter . | . . . . . . . . Parts Self-Destructed . | . . . . . . . . Prevented . | . . . . . . . . Kills | -11 -10 -10 -9 -9 -9 -8 -8 ------- Run | Yrd Mat Min Mat Min Exi Min Mat Combat Hostiles Destroyed 48 | . 7 3 12 3 . 4 19 Guns 25 | . 7 . 12 . . . 6 Cannons 5 | . . . . . . . 5 AOE 17 | . . 3 . 3 . 4 7 Classes Destroyed 11 | 2 4 1 2 . . . 2 Worker 2 | . . 1 . . . . 1 Builder 1 | . . . . . . . 1 Tunneler 5 | 2 . 1 1 . . . 1 Hauler 1 | . . . . . . . 1 Recycler 1 | 1 . . . . . . . Operator 2 | . 1 . . . . . 1 Watcher 2 | . 1 . . . . . 1 Swarmer 28 | . 3 3 3 3 . 4 12 Grunt 14 | . 4 . 7 . . . 3 Duelist 1 | . . . 1 . . . . Sentry 5 | . . . 1 . . . 4 Best Kill Streak 13 | 2 3 5 5 3 . 4 13 Combat Bots Only 10 | . 3 3 5 3 . 4 10 Max Kills in Single Turn 4 | 1 1 4 2 3 . 2 4 Gunslinging . | . . . . . . . . Exploded 3 | . . 2 . 3 . 2 3 Melee . | . . . . . . . . Uniques/NPCs Destroyed . | . . . . . . . . Combat | -11 -10 -10 -9 -9 -9 -8 -8 -------- Run | Yrd Mat Min Mat Min Exi Min Mat Hostile Shots Fired 148 | . 27 2 33 2 . 7 77 Missed 41 | . 8 1 10 2 . 2 18 Hits 107 | . 19 1 23 . . 5 59 Melee 6 | . . . 5 . . . 1 Projectile 101 | . 19 1 18 . . 5 58 Critical Strikes 3 | . . . 1 . . . 2 Damage Taken 1759 | . 196 45 358 40 . 117 1003 Core 137 | . 29 18 39 . . . 51 Absorbed by Shields . | . . . . . . . . Core Remaining (%) 90 | 100 . 81 . . . 90 . Volleys Fired 110 | 7 26 2 28 2 . 3 42 Largest 2 | 2 2 1 2 1 . 1 2 Hottest 120 | 40 46 30 46 30 . 30 120 Shots Fired 185 | 14 52 2 56 2 . 3 56 Gun 162 | 14 52 . 56 . . . 40 Cannon 11 | . . . . . . . 11 Launcher 12 | . . 2 . 2 . 3 5 Special . | . . . . . . . . Kinetic 162 | 14 52 . 56 . . . 40 Thermal 11 | . . . . . . . 11 Explosive 12 | . . 2 . 2 . 3 5 Electromagnetic . | . . . . . . . . Robot Hit Streak 17 | 6 7 . 9 . . . 17 Robot Miss Streak 4 | 1 4 1 3 . . . 2 Penetration Max . | . . . . . . . . Secondary Targets 1 | . . . 1 . . . . Max Gunslinging Chain 1 | . . . 1 . . . . Shots Hit Robots 116 | 9 32 . 34 . . . 41 Core Hits 78 | 4 12 6 18 3 . 5 30 Critical Kills 1 | . 1 . . . . . . Critical Parts Destroyed 2 | . . . 1 . . . 1 Critical Strikes 3 | . 1 . 1 . . . 1 Destroy 3 | . 1 . 1 . . . 1 Melee Attacks . | . . . . . . . . Impact . | . . . . . . . . Slashing . | . . . . . . . . Piercing . | . . . . . . . . Sneak Attacks . | . . . . . . . . Combat Hostiles . | . . . . . . . . Follow-up Attacks . | . . . . . . . . Damage Inflicted 3407 | 115 506 358 528 180 . 246 1474 Guns 1584 | 115 506 . 528 . . . 435 Cannons 409 | . . . . . . . 409 Explosions 1369 | . . 319 . 180 . 246 624 Melee . | . . . . . . . . Ramming 45 | . . 39 . . . . 6 Kinetic 1584 | 115 506 . 528 . . . 435 Thermal 409 | . . . . . . . 409 Explosive 1369 | . . 319 . 180 . 246 624 Electromagnetic . | . . . . . . . . Impact . | . . . . . . . . Slashing . | . . . . . . . . Piercing . | . . . . . . . . Highest Corruption 7 | . 1 1 . . . . 7 Average Corruption 2 | . 1 1 . . . . 4 Corruption Purged . | . . . . . . . . Corruption Blocked . | . . . . . . . . Effects 17 | . 2 2 . . . . 13 Message Errors 2 | . 1 . . . . . 1 Matter Fused 2 | . . 1 . . . . 1 Heat Flow Errors 3 | . . . . . . . 3 Energy Discharges 3 | . . 1 . . . . 2 Parts Fused 1 | . 1 . . . . . . Data Loss (minor) 2 | . . . . . . . 2 Data Loss (major) 2 | . . . . . . . 2 Misfires 2 | . . . . . . . 2 Overload Shots . | . . . . . . . . Overflow Damage 73 | . . . . 44 . 6 23 Projectiles 18 | . . . . . . . 18 Explosions 55 | . . . . 44 . 6 5 Melee . | . . . . . . . . Knockbacks . | . . . . . . . . Impact . | . . . . . . . . Kinetic . | . . . . . . . . Secondary . | . . . . . . . . Self-Inflicted Damage 157 | . . 37 . 41 . 76 3 Shots 4 | . . 1 . 1 . 2 . Rammed 3 | . . 2 . . . . 1 Targets Rammed 3 | . . 2 . . . . 1 Kicked . | . . . . . . . . Crushed . | . . . . . . . . Highest Temperature 370 | . 1 . 4 . . . 370 Average Temperature 75 | . 1 . 2 . . . 99 Received Heat Transfer 438 | . 78 . 81 . . . 279 Siege Activations . | . . . . . . . . Martial Activations . | . . . . . . . . Shielding Activations . | . . . . . . . . Robots Disrupted . | . . . . . . . . Combat Hostiles . | . . . . . . . . Robots Corrupted . | . . . . . . . . Combat Hostiles . | . . . . . . . . Parts Fried . | . . . . . . . . Impact Corruptions . | . . . . . . . . Robots Melted 1 | . . . . . . . 1 Combat Hostiles 1 | . . . . . . . 1 Parts Melted 3 | . . . . . . . 3 Heat Transferred 880 | . . . . . . . 880 Parts Sabotaged . | . . . . . . . . Parts Stolen . | . . . . . . . . Parts Stripped . | . . . . . . . . Power Chain Reactions . | . . . . . . . . Alert | -11 -10 -10 -9 -9 -9 -8 -8 ------- Run | Yrd Mat Min Mat Min Exi Min Mat Maximum Alert Level 1 | . . . 1 1 . . 1 Low Security (%) 90 | 100 100 100 63 92 . 100 88 Level 1 9 | . . . 36 7 . . 11 Level 2 . | . . . . . . . . Level 3 . | . . . . . . . . Level 4 . | . . . . . . . . Level 5 . | . . . . . . . . High Security . | . . . . . . . . Max Security . | . . . . . . . . Peak Influence 263 | 10 79 92 237 201 . 97 263 Initial 82 | . . 21 27 82 . . . Average 90 | 1 31 26 130 163 . 47 137 Influence Increases 1510 | 15 260 92 346 119 . 117 561 Destroy 0b10 Robot/C 980 | . 140 60 240 80 . 80 380 Destroy 0b10 Robot/NC 70 | 15 10 10 5 . . . 30 Destroy Leader 186 | . 22 10 50 10 . 10 84 Allied During Kill 5 | . . . . 5 . . . Successful Hack 37 | . 27 . 5 . . . 5 Disable Machine 15 | . . . . . . . 15 Destroy Structure 97 | . 1 12 1 24 . 27 32 Partial Spotted 15 | . 15 . . . . . . Lose Combat Pursuer 105 | . 45 . 45 . . . 15 Influence Decreases 1465 | 15 205 75 205 161 171 117 516 Entered New Map 381 | . . 34 45 131 171 . . Time Decay 974 | 15 205 41 150 30 . 97 436 Lost Part 110 | . . . 10 . . 20 80 Squads Dispatched 4 | . 1 . 1 . . . 2 Investigation . | . . . . . . . . Extermination . | . . . . . . . . Reinforcement 4 | . 1 . 1 . . . 2 Assault . | . . . . . . . . Garrison . | . . . . . . . . Intercept . | . . . . . . . . Searches Triggered . | . . . . . . . . Construction Impeded . | . . . . . . . . Haulers Reinforced . | . . . . . . . . Active Scanning Responses . | . . . . . . . . Cargo Convoy Interrupts . | . . . . . . . . Stealth | -11 -10 -10 -9 -9 -9 -8 -8 --------- Run | Yrd Mat Min Mat Min Exi Min Mat Distress Signals 4 | . . . 1 . . . 3 Communications Jammed . | . . . . . . . . Distress Signals . | . . . . . . . . Times Spotted 78 | . 17 3 20 3 . 3 32 Peak Tracking Total 7 | . 5 3 7 3 . 3 7 Tactical Retreats 5 | . 3 . 1 . . . 1 Traps | -11 -10 -10 -9 -9 -9 -8 -8 ------- Run | Yrd Mat Min Mat Min Exi Min Mat Traps Triggered 2 | . 1 . . . . . 1 Indirectly . | . . . . . . . . Trap Hack Attempts . | . . . . . . . . Triggered . | . . . . . . . . Disarmed . | . . . . . . . . Reprogrammed . | . . . . . . . . Reused . | . . . . . . . . Traps Extracted . | . . . . . . . . Installed . | . . . . . . . . Triggered . | . . . . . . . . Machines | -11 -10 -10 -9 -9 -9 -8 -8 ---------- Run | Yrd Mat Min Mat Min Exi Min Mat Machines Disabled 1 | . . . . . . . 1 Max in Single Turn 1 | . . . . . . . 1 Garrison Access 1 | . . . . . . . 1 Machines Repaired . | . . . . . . . . Machines Dismantled . | . . . . . . . . Machines Sabotaged . | . . . . . . . . Overloaded Fab Kills . | . . . . . . . . Hacking | -11 -10 -10 -9 -9 -9 -8 -8 --------- Run | Yrd Mat Min Mat Min Exi Min Mat Machines Accessed 12 | . 5 . 1 . 2 . 4 Terminals 8 | . 5 . 1 . . . 2 Fabricators . | . . . . . . . . Repair Stations . | . . . . . . . . Recycling Units . | . . . . . . . . Scanalyzers 1 | . . . . . . . 1 Garrison Access 1 | . . . . . . . 1 Total Hacks 29 | . 16 . 2 . 4 . 7 Successful 18 | . 8 . 1 . 4 . 5 Failed 11 | . 8 . 1 . . . 2 Catastrophic 1 | . 1 . . . . . . Database Lockouts . | . . . . . . . . Manual 18 | . 11 . 2 . 1 . 4 Terminals 22 | . 16 . 2 . . . 4 Fabricators . | . . . . . . . . Repair Stations . | . . . . . . . . Recycling Units . | . . . . . . . . Scanalyzers 2 | . . . . . . . 2 Garrison Access 1 | . . . . . . . 1 Terminal Hacks 9 | . 4 . . . 4 . 1 Record 3 | . . . . . 3 . . Prototype ID Bank 3 | . 2 . . . . . 1 Maintenance Status 1 | . 1 . . . . . . Hauler Manifests 1 | . 1 . . . . . . Proto ID Catalog 1 | . . . . . 1 . . Fabricator Hacks . | . . . . . . . . Repair Station Hacks . | . . . . . . . . Recycling Unit Hacks . | . . . . . . . . Scanalyzer 2 | . . . . . . . 2 Insert Component 1 | . . . . . . . 1 Analyze 1 | . . . . . . . 1 Garrison Access Hacks 1 | . . . . . . . 1 Seal Access 1 | . . . . . . . 1 Unauthorized Hacks 6 | . 4 . 1 . . . 1 Terminals 6 | . 4 . 1 . . . 1 Botnet 6 | . 4 . 1 . . . 1 Fabricators . | . . . . . . . . Repair Stations . | . . . . . . . . Recycling Units . | . . . . . . . . Scanalyzers . | . . . . . . . . Garrison Access . | . . . . . . . . Data Cores Recovered 1 | . 1 . . . . . . Used 1 | . 1 . . . . . . Hacking Detections 8 | . 4 . 1 . . . 3 Full Trace Events . | . . . . . . . . Feedback Events . | . . . . . . . . Feedback Blocked . | . . . . . . . . Robot Schematics Acquired . | . . . . . . . . Robots Built . | . . . . . . . . Authchips . | . . . . . . . . Time . | . . . . . . . . Total Robot Build Rating . | . . . . . . . . Part Schematics Acquired 1 | . . . . . . . 1 Parts Built . | . . . . . . . . Authchips . | . . . . . . . . Time . | . . . . . . . . Total Part Build Rating . | . . . . . . . . Parts Repaired . | . . . . . . . . Time . | . . . . . . . . Parts Recycled . | . . . . . . . . Recycled Matter . | . . . . . . . . Retrieved Matter . | . . . . . . . . Retrieved Components . | . . . . . . . . Parts Scanalyzed 1 | . . . . . . . 1 Part Schematics Acquired 1 | . . . . . . . 1 Parts Damaged . | . . . . . . . . Bothacking | -11 -10 -10 -9 -9 -9 -8 -8 ------------ Run | Yrd Mat Min Mat Min Exi Min Mat Used RIF Installer . | . . . . . . . . Robots Hacked . | . . . . . . . . Non-combat . | . . . . . . . . Combat . | . . . . . . . . Robot Hacks Applied . | . . . . . . . . Relay Couplers Released . | . . . . . . . . Fabnet Peak Effective % . | . . . . . . . . Robots Rewired . | . . . . . . . . Allies Hacked . | . . . . . . . . Hacks Repelled . | . . . . . . . . Allies | -11 -10 -10 -9 -9 -9 -8 -8 -------- Run | Yrd Mat Min Mat Min Exi Min Mat Total Allies 1 | . . . . 1 . . . Largest Group 1 | . . . . 1 1 . . Highest-Rated Group 31 | . . . . 31 31 . . Highest-Rated Ally 31 | . . . . 31 31 . . Total Orders . | . . . . . . . . Ally Attacks 2 | . . . . 2 . . . Total Damage 20 | . . . . 20 . . . Kills 1 | . . . . 1 . . . Allies Corrupted . | . . . . . . . . Allies Melted . | . . . . . . . . Intel | -11 -10 -10 -9 -9 -9 -8 -8 ------- Run | Yrd Mat Min Mat Min Exi Min Mat Active Infowar (turns) 1994 | 39 653 . 19 67 319 215 682 Structural 278 | . . . . . . . 278 Seismic 1716 | 39 653 . 19 67 319 215 404 Robot Analysis Total . | . . . . . . . . Derelict Logs Recovered . | . . . . . . . . Drone Launches . | . . . . . . . . Drone Recoveries . | . . . . . . . . Exploration | -11 -10 -10 -9 -9 -9 -8 -8 ------------- Run | Yrd Mat Min Mat Min Exi Min Mat Turns Passed 2922 | 116 653 143 305 67 319 215 1104 Spaces Moved 1868 | 58 471 128 163 52 303 198 495 Core 13 | 13 . . . . . . . Treads . | . . . . . . . . Legs . | . . . . . . . . Wheels 1855 | 45 471 128 163 52 303 198 495 Hover . | . . . . . . . . Flight . | . . . . . . . . Fastest Speed 50 | 50 80 105 90 105 105 105 105 Average Speed 103 | 94 101 105 94 105 105 105 106 Slowest Speed 200 | 200 135 105 105 105 105 105 120 Overloaded Moves . | . . . . . . . . Propulsion Burnouts . | . . . . . . . . Robots Hopped . | . . . . . . . . Potential Cave-ins . | . . . . . . . . Cave-ins Triggered . | . . . . . . . . Exploration Rate (%) 34 | 6 62 26 20 10 70 45 35 Regions Visited 7 Branch Regions 4 Pre-discovered Areas 1 | . . . . . 1 . . Known Exits Taken . | . . . . . . . . Unknown Exits Taken 7 | 1 1 1 1 1 1 1 . Scrap Searched . | . . . . . . . . Spaces Dug 71 | . . . . 26 . 27 18 Terrain Destroyed 98 | . . 13 . 26 . 27 32 Melee . | . . . . . . . . Projectile . | . . . . . . . . AOE 98 | . . 13 . 26 . 27 32 Terrain Rammed . | . . . . . . . . Walls Destroyed . | . . . . . . . . Machines Disabled . | . . . . . . . . Actions | -11 -10 -10 -9 -9 -9 -8 -8 --------- Run | Yrd Mat Min Mat Min Exi Min Mat Total 2676 | 105 600 133 258 61 303 202 1014 Wait 595 | 16 68 . 51 7 . . 453 Move 1861 | 57 470 127 162 51 302 197 495 Hop . | . . . . . . . . Pick Up 47 | 16 14 . 6 . 1 . 10 Fast Attach 1 | 1 . . . . . . . Attach 19 | 6 . . 4 . . 2 7 Detach 1 | . . . 1 . . . . Swap 20 | . 8 2 4 1 . . 5 Drop 19 | 2 14 . 2 . . . 1 Fire 110 | 7 26 2 28 2 . 3 42 Melee . | . . . . . . . . Ram 3 | . . 2 . . . . 1 Kick . | . . . . . . . . Crush . | . . . . . . . . Escape Stasis . | . . . . . . . . Rewire . | . . . . . . . . Trap . | . . . . . . . . Miscellaneous . | . . . . . . . . Route ------- -11/Scrapyard -10/Materials (discovered 3 exits: *Mat x2 / [*Min]) -10/Mines -9/Materials -9/Mines -9/Exiles -8/Mines -8/Materials History --------- Turn | Location | Event 27 | -11/Scrapyard | Discovered new exit (range 16) 117 | -11/Scrapyard | Entered Materials 254 | -10/Materials | Discovered new exit (range 4) 316 | -10/Materials | Build established: Mutant 373 | -10/Materials | Discovered new exit (range 13) 478 | -10/Materials | Discovered new exit (range 5) 770 | -10/Materials | Entered Mines 909 | -10/Mines | Discovered new exit (range 5) 913 | -10/Mines | Entered Materials 913 | -9/Materials | Evolved 2 slots: Propulsion x1, Utility x1 1207 | -9/Materials | Discovered new exit (range 7) 1218 | -9/Materials | Entered Mines 1221 | -9/Mines | Received a Mining Laser from a helpful Derelict 1280 | -9/Mines | Deemed a non-threat by the Exiles lab entrance 1280 | -9/Mines | Discovered new exit (range 5) 1285 | -9/Mines | Entered Exiles 1285 | -9/Exiles | Accompanied by 1 ally 1313 | -9/Exiles | Met 8R-AWN 1331 | -9/Exiles | Met EX-HEX 1362 | -9/Exiles | Met EX-BIN 1374 | -9/Exiles | Aligned with FarCom system 1375 | -9/Exiles | Given EX-Vault access code 1399 | -9/Exiles | Opened EX-Vault 1405 | -9/Exiles | Found Gui. Plasma Cannon 1427 | -9/Exiles | Warned to stay clear of 0b10 Research branches 1456 | -9/Exiles | Met EX-DEC 1463 | -9/Exiles | Learned location of Zion (-7) 1592 | -9/Exiles | Discovered new exit (range 11) 1604 | -9/Exiles | Left Exiles lab with Gui. Plasma Cannon 1604 | -9/Exiles | Entered Mines 1778 | -8/Mines | Discovered new exit (range 6) 1819 | -8/Mines | Entered Materials 1819 | -8/Materials | Evolved 2 slots: Utility x2 1931 | -8/Materials | Destroyed 10 combat bots 2923 | -8/Materials | Self-destructed Last Messages --------------- 02839_ U-05 Engineer lays Concrete. 02854_ System corrupted: Matter fused (-5). 02876_ System corrupted: Substantial component data lost. 02878_ G-47 Trooper suffers critical hit (Destroy). 02878_ Destroyed Lgt. Nuclear Core. 02880_ G-47 Trooper destroyed. 02883_ Acquired 17 matter. 02884_ Lgt. Treads destroyed. 02891_ System corrupted: Heat flow error (+223). 02893_ Gui. Plasma Cannon severed. 02898_ ALERT: Suspicious intruders detected, dispatching Specialist reinforcements to area. 02901_ Knocked back. 02905_ Structural Scanner destroyed. 02905_ Critical hit (Blast). 02907_ Hvy. Assault Rifle destroyed. 02907_ Knocked back. 02914_ System corrupted: Energy discharge (-100). 02915_ R-06 Scavenger collects Gui. Plasma Cannon. 02917_ M-28 Smith repairs L-31 Rogue. Map ----- +----------------------------------------------------+ | ??????????????????############ ### | | ??????????????????## = # ### | | ??????????????????## # #######+#### | | ??????????????????## # | | ??????????????????## +% | | ??????????????????## ! # | | ??????????????????## !!! # #####+###### | | ??????????????????## !!%!# ## # | | ??????????????????## # ## # | | ??????????????????############ ## """ # | | ??????????????????##### ## """"" # | | ?????????????????????## ^ ## """"" # | | ?????????????????????## ## """"" # | | ?????????????????????### ###### """ # | | ?????????????????????### ###### ???# | | ?????????????????####### ##???#######???# | | ?????????????????#######/## ##?????????????# | | ?????????????????## ! ## ##?????????????# | | ?????????????????## ## ##?????????????# | | ?????????????????##""" ## ##?????????????# | | ?????????????????##"R ! ## ##?????????????# | | ?????????????????##""" ## ###????????????# | | ?????############## [ ## ###????????????# | | ?????#/ ! ###########+## ##????????????# | | ?????# mg % " ##????????????# | | ?????# #; % l @ "T ##????????????# | | ?????# """ =## #######+## ##????????????# | | ?????# """ ## %### ##+####????????????# | | ?????# """ ##H ### = """# ????????????# | | ?????#####+## ## """# ?????????????????? | | ???????#% ## """# ?????????????????? | | ???????# ##! # ?????????????????? | | ???????######[ ## # ?????????????????? | | ???????################### ?????????????????? | | ???????????###############??????????????????? | | | | | | | | | | | | | | | | | | | | | | | | | | | | | | | +----------------------------------------------------+ Best States ------------- Heat Dissipation 45 Energy Generation 10 Energy Capacity 250 Matter Stores 300 Matter Capacity 300 Sight Range 16 Terrain Scan Density 10 Armor Coverage 450 Evasion (%) 50 Item Schematics ----------------- Imp. Flight Unit | -8/Materials | Scanalyzed Robot Schematics ------------------ None Fabricated ------------ Nothing Repaired ---------- Nothing Alien Tech Used ----------------- None Achievements -------------- Shopping List Challenges ------------ None Game ------ Seed GravmagArcFalx Manual? 0 Play Time 00:38:01 Cumulative 61.5 hours Start 2025.10.18 @ 04:27:57 End 2025.10.18 @ 05:42:08 Sessions 1 Manual Loads 0 Difficulty Rogue Special Mode None Game No. 55 Rogue 55 Adventurer 0 Explorer 0 Win Type - Total 0 Types 0/0/0/0/0/0/0/0/0/0 Lore% 19 Gallery% 36 Achievement% 33 Wizard Run 0 Options --------- Layout 0 ASCII 0 Keyboard 0 Movement Mouse Keybinds 0 Fullscreen 2 Font 18/X11 Map View 76x50 Zoom Use 0% Tactical HUD 1 Map Filters NONE Filters NONE Steam 1 RUN: 83a2a294-81d2-4c32-b6c7-573803a26602